bitfinex-derivatives/quotes_ETHF0:USTF0_20260213
["timestamp","ask_amount","ask_price","bid_price","bid_amount"]
[1771014303548,0.59048048,2049.0,2048.5,0.24421]
[1771014303754,0.59048048,2049.0,2048.1,0.65933941]
[1771014303951,0.59048048,2049.0,2048.2,0.41507941]
[1771014306852,0.59048048,2048.9,2048.3,0.65977251]
[1771014307157,0.59048048,2048.9,2048.4,0.41554251]
[1771014311255,2.30700119,2049.0,2048.6,0.40946]
[1771014311559,0.59048048,2049.0,2048.6,0.40946]
[1771014312062,0.59048048,2049.1,2048.6,0.40946]
[1771014312757,0.59048048,2048.9,2048.5,0.24421]
[1771014312961,0.59048048,2048.7,2048.5,0.24421]
[1771014313165,0.00498398,2048.7,2048.6,0.4060535]
[1771014313358,2.30700119,2049.0,2048.6,0.4060535]
[1771014313559,0.59048048,2049.0,2048.6,0.4060535]
[1771014313758,0.59048048,2048.9,2048.6,0.4060535]
[1771014313958,0.59048048,2048.7,2048.3,0.39925469]
[1771014314157,0.59048048,2048.5,2048.1,0.64351469]
[1771014314359,0.48151191,2048.5,2048.2,0.51239777]
[1771014314562,0.48151191,2048.5,2048.1,0.76206794]
[1771014315060,0.36826621,2048.5,2048.1,0.24967017]
[1771014315267,0.36826621,2048.5,2048.2,0.58703607]
[1771014315764,0.00427713,2048.5,2048.2,0.58703607]
[1771014316165,0.59475761,2048.5,2048.2,0.58703607]
[1771014316465,0.00427713,2048.5,2048.2,0.58703607]
[1771014318365,0.59475761,2048.5,2048.2,0.58703607]
[1771014318562,0.59475761,2048.5,2048.1,0.24967017]
[1771014318966,0.59475761,2048.5,2048.1,0.83670624]
[1771014319262,0.00427713,2048.5,2048.2,0.58703607]
[1771014320769,0.00427713,2048.5,2048.4,0.58703607]
[1771014320970,0.59048048,2049.1,2048.5,0.83124607]
[1771014321160,0.59048048,2048.9,2048.5,0.83124607]
[1771014321366,0.59048048,2049.2,2048.6,0.58703607]
[1771014321567,43.53813157,2049.4,2048.6,0.58703607]
[1771014321568,0.59048048,2049.0,2048.6,0.58703607]
[1771014321865,0.59448442,2049.0,2048.6,0.58703607]
[1771014322463,0.59448442,2049.0,2048.5,0.24421]
[1771014322663,0.59048048,2048.8,2048.1,0.83670624]
[1771014322972,0.59048048,2048.6,2048.1,0.00541017]
[1771014323573,0.59048048,2048.6,2048.1,0.59244624]
[1771014324374,0.59048048,2048.6,2048.1,0.00541017]
[1771014325469,0.59048048,2048.4,2047.7,0.58703607]
[1771014325670,0.59048048,2048.4,2047.9,0.58703607]
[1771014325871,0.59048048,2048.6,2048.1,0.58703607]
[1771014326470,0.59048048,2048.6,2048.1,0.59078004]
[1771014326675,0.59048048,2048.6,2048.3,0.58703607]
[1771014326876,0.59048048,2048.9,2048.3,0.58703607]
[1771014327076,0.59048048,2048.7,2048.3,0.58703607]
[1771014329172,0.59048048,2048.7,2048.1,0.00374397]
[1771014329872,0.59048048,2048.7,2048.1,0.59078004]
[1771014331279,2.30772378,2048.7,2048.1,0.00374397]
[1771014331482,0.57727979,2048.5,2048.1,0.00374397]
[1771014331679,0.57727979,2048.5,2047.8,0.8250303]
[1771014332678,0.57727979,2048.3,2047.8,0.24429]
[1771014332982,0.57727979,2048.3,2047.6,0.5807403]
[1771014333185,0.57727979,2048.3,2047.8,0.24429]
[1771014333382,0.57727979,2048.3,2047.8,0.8250303]
[1771014334884,0.57727979,2048.3,2047.5,0.5807403]
[1771014335084,0.57727979,2048.3,2047.4,0.24434]
[1771014335284,0.57727979,2048.1,2047.4,0.24434]
[1771014335786,0.57727979,2048.1,2047.4,0.8250803]
[1771014337894,0.56093416,2047.9,2047.4,0.24434]
[1771014339896,0.56093416,2048.0,2047.5,0.58512055]
[1771014340092,0.56093416,2048.0,2047.7,0.58512055]
[1771014340291,0.56093416,2048.1,2047.7,0.58512055]
[1771014340691,0.56093416,2048.1,2047.6,0.82944055]
[1771014341096,0.56093416,2048.1,2047.7,0.58512055]
[1771014341606,0.56093416,2048.1,2047.6,0.24432]
[1771014342696,0.56093416,2048.1,2047.4,0.58512055]
[1771014346901,0.56093416,2048.1,2047.2,0.58512055]
[1771014347506,0.56093416,2047.9,2047.2,0.58512055]
[1771014347909,0.56093416,2047.9,2047.1,0.80620963]
[1771014348209,0.56093416,2047.7,2047.1,0.80620963]
[1771014349607,0.56093416,2047.7,2047.1,0.24437]
[1771014350108,0.56093416,2047.7,2047.1,0.79989953]
[1771014351404,0.56093416,2047.6,2046.7,0.80140909]
[1771014351604,0.56093416,2047.4,2046.7,0.80140909]
[1771014351907,0.56093416,2047.2,2046.7,0.80140909]
[1771014352809,0.56093416,2047.0,2045.9,0.5569279]
[1771014353110,0.56093416,2046.8,2045.9,0.5569279]
[1771014353305,0.56093416,2046.7,2045.9,0.5569279]
[1771014353509,0.56093416,2046.7,2045.2,0.2446]
[1771014353715,0.59137251,2045.6,2044.7,6.26335]
[1771014354008,0.00443615,2045.6,2045.0,0.24462]
[1771014354212,0.59137251,2045.9,2045.0,6.26252]
[1771014354607,0.59137162,2046.6,2045.3,0.24458]
[1771014354809,0.59137162,2046.4,2045.3,6.26163]
[1771014355211,0.59759003,2046.4,2045.4,0.04507405]
[1771014359312,0.59759003,2046.4,2045.6,0.07729829]
[1771014361311,0.59759003,2046.4,2045.7,0.24454]
[1771014361616,0.00621841,2046.4,2046.0,0.11936975]
[1771014361816,0.002018,2046.4,2046.0,0.11936975]
[1771014362714,0.55163452,2046.7,2046.2,0.12948928]
[1771014363020,0.55163452,2046.8,2046.3,0.24447]
[1771014363209,0.55163452,2046.8,2046.3,0.37395928]
[1771014363613,0.55527542,2046.8,2046.3,0.37851549]
[1771014364114,0.55527542,2046.8,2046.4,0.14240367]
[1771014364410,0.0036409,2046.8,2046.4,0.14240367]
[1771014364617,0.54981741,2047.1,2046.6,0.15231095]
[1771014365510,0.5532428,2047.1,2046.6,0.15231095]
[1771014366917,0.00342539,2047.1,2046.8,0.16574429]
[1771014368321,0.54580513,2047.4,2046.8,0.16574429]
[1771014368821,0.54580513,2047.4,2047.0,0.19908747]
[1771014369519,0.55070632,2047.4,2047.0,0.19908747]
[1771014369722,1.19e-06,2047.4,2047.2,0.20808555]
[1771014369922,0.54580513,2047.6,2047.2,0.20808555]
[1771014370221,0.54580513,2048.3,2047.8,0.20808555]
[1771014370422,0.54580513,2048.3,2047.9,0.46168053]
[1771014370918,0.5502991,2048.3,2047.9,0.46526654]
[1771014373326,0.00449397,2048.3,2048.0,0.23437764]
[1771014374022,0.54580513,2049.1,2048.2,0.55845313]
[1771014374220,0.54580513,2049.1,2048.1,0.24426]
[1771014374427,0.54580513,2048.9,2047.9,0.00358601]
[1771014375018,0.54580513,2048.7,2047.9,0.00358601]
[1771014375220,0.54580513,2048.5,2047.1,0.80282313]
[1771014375515,0.54580513,2048.3,2047.3,0.80280313]
[1771014375716,0.54580513,2048.3,2047.4,0.55845313]
[1771014376427,0.54580513,2048.3,2047.4,0.56275162]
[1771014376628,0.54580513,2048.3,2047.4,0.00429849]
[1771014377730,0.54580513,2048.1,2046.9,0.55845313]
[1771014378828,0.54580513,2048.1,2046.9,0.56231862]
[1771014379826,0.54580513,2047.9,2046.9,0.56231862]
[1771014381026,5.99810197,2047.8,2046.9,0.00386549]
[1771014381227,0.54580513,2047.7,2046.9,0.00386549]
[1771014381923,0.54580513,2047.6,2046.5,0.55845313]
[1771014382323,0.54580513,2047.5,2046.5,0.55845313]
[1771014382722,0.54580513,2047.5,2046.3,0.80292313]
[1771014382926,0.54580513,2047.2,2046.3,0.25022382]
[1771014383223,0.54580513,2046.9,2046.3,0.00575382]
[1771014383619,0.54580513,2046.8,2045.8,0.24453]
[1771014383825,0.54580513,2046.6,2045.8,0.24453]
[1771014384525,0.54580513,2046.6,2045.8,0.24951797]
[1771014385325,0.54580513,2046.6,2045.8,0.00498797]
[1771014386427,0.54580513,2046.6,2045.3,0.80304313]
[1771014386628,0.54580513,2046.6,2045.4,0.55845313]
[1771014387332,0.54580513,2046.6,2045.4,0.56260738]
[1771014387528,0.54580513,2046.4,2045.4,0.56260738]
[1771014389427,0.54580513,2046.4,2045.6,0.55845313]
[1771014391236,2.57919553,2046.7,2045.4,0.00415425]
[1771014391237,0.714366,2046.7,2046.0,0.68974698]
[1771014391928,0.714366,2046.7,2046.2,0.68974698]
[1771014392131,0.714366,2047.1,2046.2,0.68974698]
[1771014393131,0.714366,2047.1,2046.4,0.68974698]
[1771014393433,0.714366,2047.1,2045.9,0.68974698]
[1771014394032,0.714366,2046.9,2045.9,0.68974698]
[1771014396424,0.714366,2046.8,2045.9,0.68974698]
[1771014397538,0.714366,2046.8,2046.0,0.24451]
[1771014397833,0.714366,2046.8,2046.1,0.73663736]
[1771014398435,0.714366,2046.8,2046.3,0.73663736]
[1771014398630,0.70284711,2047.0,2046.5,0.73663736]
[1771014398831,0.70636378,2047.2,2046.7,0.73663736]
[1771014399032,0.00351667,2047.2,2046.9,0.73663736]
[1771014399338,0.00351667,2047.2,2046.9,0.74157719]
[1771014399633,45.62540306,2048.2,2046.9,0.74157719]
[1771014399634,0.70284711,2047.9,2047.3,0.73663736]
[1771014400342,0.70284711,2048.1,2047.5,0.73663736]
[1771014400532,0.70882323,2048.1,2047.5,0.73663736]
[1771014400737,0.00597612,2048.1,2047.7,0.73663736]
[1771014401238,0.70284711,2048.0,2047.6,0.24432]
[1771014401439,0.70284711,2048.0,2047.5,0.73663736]
[1771014403137,0.70284711,2048.0,2047.3,0.73663736]
[1771014403339,0.70284711,2048.0,2047.1,0.98100736]
[1771014404635,0.70284711,2048.0,2047.2,0.73663736]
[1771014405739,0.70284711,2048.0,2047.4,0.73663736]
[1771014406238,0.70882323,2048.1,2047.6,0.73663736]
[1771014408140,0.00597612,2048.1,2047.8,0.73663736]
[1771014408529,0.70882323,2048.1,2047.5,0.73663736]
[1771014408841,0.70882323,2048.1,2047.3,0.73663736]
[1771014409233,0.70882323,2048.1,2047.4,0.24434]
[1771014409433,0.70882323,2048.1,2047.5,0.73663736]
[1771014420235,0.70882323,2048.1,2047.4,0.98097736]
[1771014421035,0.81946437,2047.9,2047.1,0.80326293]
[1771014422141,0.81946437,2047.7,2047.1,0.80326293]
[1771014422639,56.97618365,2048.1,2047.1,0.80326293]
[1771014422640,3.69502559,2048.1,2047.7,0.80326293]
[1771014422845,0.82544049,2048.1,2047.7,0.80326293]
[1771014423038,0.00597612,2048.1,2047.7,0.80326293]
[1771014423241,0.00597612,2048.1,2047.9,0.80326293]
[1771014423447,0.82544049,2048.1,2047.8,0.24429]
[1771014424345,0.00597612,2048.1,2047.8,1.04755293]
[1771014425241,0.00597612,2048.1,2047.9,0.80326293]
[1771014425542,0.81946437,2048.5,2047.9,0.80326293]
[1771014425846,6.35348455,2048.4,2047.9,0.80326293]
[1771014426047,0.81946437,2048.4,2047.9,0.80326293]
[1771014426247,5.53959708,2048.3,2047.9,0.80326293]
[1771014426544,0.00384014,2048.3,2047.9,0.80326293]
[1771014426747,0.00384014,2048.3,2047.6,0.80326293]
[1771014426748,0.81946437,2048.1,2047.6,0.80326293]
[1771014427741,0.82330451,2048.3,2047.8,0.80326293]
[1771014427947,5.54664912,2048.2,2047.8,0.80326293]
[1771014428244,0.00384014,2048.3,2048.0,0.80326293]
[1771014428440,5.55669946,2048.2,2048.0,0.80326293]
[1771014428641,0.00384014,2048.3,2048.0,0.80326293]
[1771014429145,0.82330451,2048.3,2047.9,1.04754293]
[1771014429746,0.82330451,2048.3,2048.0,0.80326293]
[1771014430143,0.82330451,2048.3,2047.9,1.04754293]
[1771014431148,0.82330451,2048.3,2047.7,0.80326293]
[1771014434545,0.82330451,2048.3,2047.5,0.80326293]
[1771014434850,0.81946437,2048.2,2047.5,0.80326293]
[1771014435542,0.81946437,2047.8,2047.1,0.80326293]
[1771014436652,0.81946437,2047.7,2047.1,0.80326293]
[1771014436946,0.81946437,2047.5,2046.9,0.00493983]
[1771014437450,0.81946437,2047.5,2046.9,0.80820276]
[1771014437750,0.81946437,2047.5,2046.9,0.00493983]
[1771014437950,0.81946437,2047.5,2046.9,0.80820276]
[1771014438551,0.81946437,2047.5,2046.9,0.00493983]
[1771014438751,0.81946437,2047.4,2046.9,0.00493983]
[1771014438946,0.81946437,2047.3,2046.5,0.24444]
[1771014439153,0.81946437,2047.3,2046.5,1.04770293]
[1771014440053,0.81946437,2047.3,2046.5,1.05240027]
[1771014440752,0.81946437,2047.1,2046.5,1.05240027]
[1771014441354,0.81946437,2047.1,2046.5,0.24913734]
[1771014441656,0.81946437,2047.1,2046.5,1.05240027]
[1771014441657,0.81946437,2046.9,2046.5,1.05240027]
[1771014443257,0.81946437,2046.9,2046.6,0.80326293]
[1771014445766,0.81946437,2046.9,2046.5,1.05240027]
[1771014445955,0.81946437,2046.9,2046.5,0.24913734]
[1771014446960,0.81946437,2046.9,2046.5,0.00469734]
[1771014447163,0.81946437,2046.9,2046.2,0.80326293]
[1771014448063,0.81946437,2046.9,2046.2,0.80841094]
[1771014450264,0.81946437,2046.7,2045.8,0.80326293]
[1771014450461,0.81946437,2046.5,2045.8,0.80326293]
[1771014450669,0.81946437,2046.5,2045.6,0.80326293]
[1771014451169,0.824934,2046.5,2045.6,0.80914669]
[1771014451564,0.82821187,2046.3,2045.7,0.85848272]
[1771014454072,0.8336815,2046.5,2045.7,0.85848272]
[1771014457270,0.8336815,2046.5,2045.6,0.25043376]
[1771014457465,0.85695732,2046.4,2045.3,0.86762055]
[1771014457671,0.85695732,2046.1,2045.2,0.86762055]
[1771014457873,0.85695732,2046.0,2045.2,0.86762055]
[1771014458170,0.85695732,2046.0,2045.1,0.24461]
[1771014458368,0.85695732,2045.9,2044.8,0.86762055]
[1771014460175,0.85695732,2045.9,2044.6,0.24467]
[1771014460176,4.883,2045.7,2044.6,1.11229055]
[1771014460375,0.85695732,2045.4,2044.7,0.86762055]
[1771014460577,0.85695732,2045.4,2044.6,1.11229055]
[1771014460776,0.85695732,2045.4,2044.6,0.24467]
[1771014461173,0.85695732,2045.3,2044.6,0.24467]
[1771014462181,0.85695732,2045.3,2044.5,0.86762055]
[1771014462382,0.85695732,2045.3,2044.3,0.86762055]
[1771014465380,0.85695732,2045.1,2044.1,1.11235055]
[1771014465974,0.85695732,2044.9,2044.1,1.11235055]
[1771014466174,0.86086982,2044.9,2044.1,0.24473]
[1771014466375,0.86086982,2044.9,2044.1,1.11235055]
[1771014466577,0.86086982,2044.9,2044.2,0.86762055]
[1771014466883,0.0039125,2044.9,2044.4,0.86762055]
[1771014467088,0.86086982,2044.9,2044.4,0.86762055]
[1771014467471,0.0039125,2044.9,2044.4,0.86762055]
[1771014468979,0.86086982,2044.9,2044.4,0.86762055]
[1771014470377,0.86086982,2044.9,2044.3,1.11233055]
[1771014473675,0.86086982,2044.9,2044.4,0.86762055]
[1771014473878,0.86086982,2044.9,2043.6,6.02204]
[1771014473879,0.0039125,2044.9,2044.6,0.86762055]
[1771014474193,0.85695732,2045.3,2044.6,0.86762055]
[1771014474488,0.85695732,2045.1,2044.4,0.86762055]
[1771014474988,0.860512,2045.1,2044.6,0.86762055]
[1771014476286,0.00355468,2045.1,2044.6,0.86762055]
[1771014476690,0.00355468,2045.1,2044.8,0.86762055]
[1771014476888,0.85695732,2045.4,2044.8,0.86762055]
[1771014477679,2.87278706,2045.7,2045.0,0.86762055]
[1771014477884,6.40444186,2045.7,2045.0,0.86762055]
[1771014478086,0.86149231,2045.7,2045.0,0.86762055]
[1771014478789,0.86149231,2045.7,2045.2,0.86762055]
[1771014479184,0.86149231,2045.7,2045.1,0.24462]
[1771014479390,0.85695732,2045.5,2044.8,0.86762055]
[1771014480489,0.85695732,2045.3,2044.7,0.86762055]
[1771014481090,0.88829026,2045.1,2044.4,0.8493502]
[1771014481388,0.88829026,2044.9,2044.4,0.8493502]
[1771014482282,0.88829026,2044.9,2044.4,0.0039125]
[1771014482482,0.88829026,2044.9,2044.5,0.8454377]
[1771014482679,0.88829026,2044.9,2044.4,0.0039125]
[1771014483285,0.88829026,2044.7,2044.2,0.4827674]
[1771014484386,0.88829026,2044.7,2044.2,0.48632208]
[1771014485185,3.76107732,2045.0,2044.4,0.48557538]
[1771014485385,5.55875629,2044.9,2044.4,0.48557538]
[1771014485591,5.55875629,2044.8,2044.4,0.48557538]
[1771014486292,5.5637681,2044.7,2044.4,0.48557538]
[1771014486489,3.76107732,2044.9,2044.4,0.48557538]
[1771014486693,5.5637601,2044.8,2044.4,0.48557538]
[1771014486994,0.88829026,2044.9,2044.4,0.48557538]
[1771014487193,5.56375004,2044.8,2044.4,0.48557538]
[1771014487493,5.56375004,2044.7,2044.4,0.48557538]
[1771014487692,3.76107732,2044.9,2044.4,0.48557538]
[1771014487892,5.56973441,2044.8,2044.4,0.48557538]
[1771014488088,5.56973441,2044.7,2044.4,0.48557538]
[1771014488289,0.88829026,2044.8,2044.4,0.48557538]
[1771014488592,5.57244708,2044.7,2044.4,0.48557538]
[1771014488793,0.88829026,2044.8,2044.4,0.48557538]
[1771014489094,5.55035139,2044.7,2044.4,0.48557538]
[1771014489390,0.88829026,2044.8,2044.4,0.48557538]
[1771014489583,5.55182808,2044.7,2044.4,0.48557538]
[1771014489787,0.88829026,2044.8,2044.4,0.48557538]
[1771014489988,4.49505572,2044.7,2044.6,0.51745688]
[1771014490285,3.80638551,2045.1,2044.6,0.51745688]
[1771014490490,3.80630839,2045.0,2044.6,0.51745688]
[1771014490693,0.93352133,2045.0,2044.6,0.51745688]
[1771014491389,0.93352133,2045.0,2044.5,0.24469]
[1771014492188,0.93589191,2044.9,2044.5,0.24589816]
[1771014493392,0.93589191,2044.9,2044.5,0.24469]
[1771014493594,0.93580858,2045.0,2044.6,0.00701405]
[1771014493797,0.93580858,2045.2,2044.8,0.00701405]
[1771014493997,0.93580858,2045.1,2044.8,0.00701405]
[1771014494288,0.93580858,2045.1,2044.3,0.00701405]
[1771014494596,0.93573847,2044.9,2044.3,0.00701405]
[1771014495294,0.93573847,2044.9,2044.2,0.24827468]
[1771014495295,0.93573847,2044.9,2044.2,0.26094367]
[1771014497697,0.93573847,2044.9,2044.3,0.01040547]
[1771014498898,0.93573847,2044.9,2044.5,0.0131734]
[1771014499090,0.93573847,2044.9,2044.4,0.2447]
[1771014502095,0.93271576,2044.7,2044.4,0.2447]
[1771014502894,0.93271576,2044.7,2044.4,0.28186607]
[1771014503093,0.88829026,2044.9,2044.5,0.54871607]
[1771014504300,0.88829026,2045.2,2044.7,0.57825131]
[1771014504497,6.29870242,2045.1,2044.7,0.57825131]
[1771014504694,0.88829026,2045.3,2044.7,0.57825131]
[1771014504895,0.88829026,2045.3,2044.9,0.57843908]
[1771014505200,0.88829026,2045.3,2044.8,0.24465]
[1771014505500,0.88829026,2045.1,2044.4,0.2447]
[1771014505703,0.88829026,2044.9,2044.2,0.00355468]
[1771014505895,0.88829026,2044.7,2044.4,0.2447]
[1771014506402,0.88829026,2045.0,2044.4,1.0901377]
[1771014506596,0.88829026,2044.9,2044.5,0.8454377]
[1771014506798,0.88829026,2044.9,2044.4,1.0901377]
[1771014507401,0.88829026,2045.1,2044.7,0.8454377]
[1771014507800,2.89533778,2045.4,2044.7,0.8454377]
[1771014508001,6.29891193,2045.3,2044.7,0.8454377]
[1771014508200,6.29891193,2045.2,2044.9,0.8454377]
[1771014508397,0.88829026,2045.2,2044.9,0.8454377]
[1771014508699,0.88829026,2045.4,2044.9,0.8454377]
[1771014508902,0.88829026,2045.6,2045.2,1.0900377]
[1771014510201,0.88829026,2045.6,2044.7,0.24465]
[1771014510402,0.88829026,2045.6,2045.0,0.8454377]
[1771014510599,0.89282525,2045.7,2045.2,0.8454377]
[1771014510810,0.00453499,2045.7,2045.4,0.8454377]
[1771014511096,0.88829026,2045.9,2045.4,0.8454377]
[1771014511297,6.3532637,2045.8,2045.4,0.8454377]
[1771014511505,0.94083904,2045.8,2045.4,0.8454377]
[1771014511704,0.94083904,2045.8,2045.3,1.19067549]
[1771014512001,0.94580444,2045.8,2045.3,0.24459]
[1771014512201,0.94580444,2045.8,2045.3,1.19067549]
[1771014512697,0.94580444,2045.8,2045.3,0.24459]
[1771014512903,0.94580444,2045.8,2045.3,1.19067549]
[1771014514205,0.94580444,2045.8,2045.4,0.94608549]
[1771014514402,0.0049654,2045.8,2045.5,0.24457]
[1771014514707,0.94083904,2046.0,2045.2,0.94608549]
[1771014515006,0.94083904,2045.8,2045.0,1.19070549]
[1771014515603,0.94648042,2045.8,2045.0,1.19070549]
[1771014516996,0.94648042,2045.8,2045.0,0.24462]
[1771014517203,0.94083904,2045.6,2045.0,0.24462]
[1771014517702,0.94083904,2045.6,2045.1,0.89099375]
[1771014519206,0.94083904,2045.6,2045.0,0.24462]
[1771014519408,0.94083904,2045.6,2045.0,1.13561375]
[1771014519598,0.94083904,2045.6,2045.0,0.24462]
[1771014520010,0.94083904,2045.6,2044.8,0.89099375]
[1771014521310,0.9018292,2045.4,2044.6,1.13567375]
[1771014521610,0.9018292,2045.2,2044.5,0.89099375]
[1771014523412,0.9018292,2045.2,2044.3,0.89099375]
[1771014523607,0.9018292,2045.0,2044.3,0.89099375]
[1771014525714,0.9018292,2045.0,2044.2,0.00355468]
[1771014527010,0.9018292,2045.0,2044.2,0.89454843]
[1771014527515,0.9018292,2044.8,2044.2,0.89454843]
[1771014529013,0.9018292,2044.8,2044.2,0.00355468]
[1771014531212,0.9018292,2044.8,2043.8,0.89099375]
[1771014531213,0.9018292,2044.6,2043.8,0.89099375]
[1771014531414,6.29914877,2044.5,2043.7,0.24478]
[1771014531612,0.9018292,2044.4,2043.7,0.24478]
[1771014531814,0.9018292,2044.4,2043.7,1.13577375]
[1771014532013,0.9018292,2044.4,2043.8,0.89099375]
[1771014532216,0.9018292,2044.7,2044.0,0.89099375]
[1771014532416,0.9018292,2044.7,2044.2,0.89099375]
[1771014532915,0.9018292,2045.2,2044.4,0.89099375]
[1771014533320,0.9018292,2045.5,2044.6,0.89099375]
[1771014533622,0.9018292,2045.3,2044.6,0.89099375]
[1771014536323,0.9018292,2045.3,2044.5,0.24469]
[1771014536931,0.9018292,2045.3,2044.5,1.13568375]
[1771014538731,0.9018292,2045.3,2044.5,0.24469]
[1771014539228,0.9018292,2045.1,2044.5,0.24469]
[1771014541631,0.9018292,2045.1,2044.5,1.17757903]
[1771014541826,0.9018292,2045.1,2044.6,0.93288903]
[1771014542030,0.9018292,2045.1,2044.5,0.24469]
[1771014542031,0.91314053,2045.3,2044.8,0.93288903]
[1771014546334,0.91314053,2045.3,2044.7,0.24466]
[1771014546537,0.91314053,2045.3,2044.7,1.17754903]
[1771014547432,0.91314053,2045.3,2044.8,0.93288903]
[1771014548426,0.91314053,2045.5,2044.8,0.93288903]
[1771014549640,0.91314053,2045.3,2044.8,0.93288903]
[1771014550744,0.91314053,2045.3,2044.7,0.24466]
[1771014551040,0.91314053,2045.3,2044.7,1.17754903]
[1771014552542,0.91314053,2045.3,2044.8,0.93288903]
[1771014553343,0.91314053,2045.5,2045.0,0.93288903]
[1771014554034,0.91314053,2045.6,2045.2,0.93288903]
[1771014554235,0.91314053,2045.7,2045.2,0.93288903]
[1771014555944,0.91314053,2045.7,2045.1,0.24462]
[1771014556145,0.91314053,2045.7,2045.1,1.17750903]
[1771014559143,0.91314053,2045.7,2045.2,0.93288903]
[1771014559849,0.91314053,2045.7,2045.1,0.24462]
[1771014560145,0.91314053,2045.7,2044.9,0.93288903]
[1771014560336,0.91314053,2045.5,2044.9,0.93288903]
[1771014560845,0.91314053,2045.5,2044.8,0.93288903]
[1771014562648,3.80669432,2045.7,2045.0,0.93288903]
[1771014562849,6.3030186,2045.6,2045.0,0.93288903]
[1771014563048,0.91314053,2045.6,2045.2,0.93288903]
[1771014563653,0.91878191,2045.8,2045.4,0.93288903]
[1771014563952,0.91878191,2045.8,2045.4,0.93765676]
[1771014565150,0.00564138,2045.8,2045.4,0.93765676]
[1771014565952,0.91878191,2045.8,2045.4,0.93765676]
[1771014567455,0.00564138,2045.8,2045.4,0.93765676]
[1771014568253,0.91878191,2045.8,2045.4,0.93765676]
[1771014571255,0.91878191,2045.8,2045.4,0.00476773]
[1771014571656,0.91878191,2045.8,2045.4,0.99782723]
[1771014572359,0.91878191,2045.8,2045.4,0.00476773]
[1771014574561,1.014733,2045.6,2045.0,0.9930595]
[1771014575458,1.014733,2045.6,2045.0,0.996935]
[1771014576156,1.014733,2045.6,2044.9,0.24464]
[1771014576157,1.014733,2045.4,2044.7,0.9930595]
[1771014576360,1.014733,2045.2,2044.7,0.9930595]
[1771014576960,1.014733,2045.2,2044.6,0.9930595]
[1771014577163,1.014733,2045.2,2044.6,0.99391666]
[1771014579760,1.014733,2045.2,2044.7,0.24466]
[1771014580062,1.03851992,2045.5,2044.8,1.02370013]
[1771014580261,1.03851992,2045.3,2044.8,1.02370013]
[1771014581658,1.03851992,2045.3,2044.7,1.26836013]
[1771014583156,1.0441613,2045.8,2045.1,1.02370013]
[1771014583861,1.0441613,2045.8,2045.3,1.02370013]
[1771014584366,1.0441613,2045.8,2045.2,1.26830013]
[1771014587966,1.0441613,2045.8,2044.8,1.26835013]
[1771014589463,1.03851992,2045.6,2044.8,1.26835013]
[1771014590959,1.03851992,2045.7,2045.2,1.02370013]
[1771014594670,1.03851992,2045.7,2044.6,0.00085716]
[1771014594876,1.03851992,2045.3,2044.6,1.26922729]
[1771014595871,1.03851992,2045.5,2044.6,1.26922729]
[1771014597675,1.03851992,2045.7,2045.1,1.02370013]
[1771014598174,1.0441613,2045.8,2045.3,1.02370013]
[1771014598373,0.00087365,2045.8,2045.5,1.02370013]
[1771014598570,1.03851992,2046.2,2045.7,1.02370013]
[1771014599577,1.03851992,2046.2,2045.6,0.24456]
[1771014599578,1.04447521,2046.2,2045.6,0.24456]
[1771014600077,1.04447521,2046.2,2045.6,1.26826013]
[1771014600372,1.03851992,2046.0,2045.1,1.26831013]
[1771014600577,1.03851992,2045.8,2045.1,1.26831013]
[1771014602180,1.00564822,2046.0,2045.5,0.24457]
[1771014602479,1.01160351,2046.2,2045.5,0.24457]
[1771014602678,1.01160351,2046.2,2045.5,1.21115856]
[1771014602882,0.00595529,2046.2,2045.8,0.96658856]
[1771014603276,1.00564822,2046.6,2046.0,0.96658856]
[1771014604070,1.00564822,2046.6,2045.9,0.24452]
[1771014604071,1.00564822,2046.6,2046.2,0.96658856]
[1771014604276,1.01170297,2046.6,2046.2,0.00609001]
[1771014604677,1.01170297,2046.6,2045.7,0.96658856]
[1771014604874,1.01170297,2046.6,2045.9,0.96658856]
[1771014605079,1.01170297,2046.6,2046.1,0.96658856]
[1771014605280,0.00605475,2046.6,2046.3,0.96658856]
[1771014605689,1.01170297,2046.6,2046.3,0.97144478]
[1771014605983,1.01170297,2046.6,2045.7,1.21111856]
[1771014606188,1.01170297,2046.6,2045.9,1.21110856]
[1771014606383,1.01170297,2046.6,2045.9,0.24452]
[1771014606789,1.01170297,2046.6,2045.9,1.21110856]
[1771014606985,1.01170297,2046.6,2045.9,1.21261616]
[1771014607990,1.01170297,2046.6,2046.0,0.96658856]
[1771014608283,1.01170297,2046.6,2046.2,0.96658856]
[1771014608478,1.01170297,2046.6,2045.9,0.96809616]
[1771014611886,1.01170297,2046.6,2046.1,0.96658856]
[1771014612085,1.01170297,2046.6,2046.0,0.24451]
[1771014614593,1.01170297,2046.6,2046.1,0.96658856]
[1771014615096,1.01170297,2046.6,2046.0,0.24451]
[1771014615296,1.01170297,2046.6,2046.0,1.21109856]
[1771014615493,1.01170297,2046.6,2045.9,0.0015076]
[1771014615893,1.01170297,2046.6,2045.6,0.24456]
[1771014616093,1.00564822,2046.4,2045.6,1.21114856]
[1771014616391,1.00564822,2046.4,2045.9,0.96658856]
[1771014617995,1.00564822,2046.4,2045.8,0.24453]
[1771014619394,1.00564822,2046.4,2045.6,0.96658856]
[1771014619694,1.00564822,2046.4,2045.7,1.21112856]
[1771014621299,1.00564822,2046.4,2045.7,0.24454]
[1771014621502,1.00564822,2046.2,2045.3,1.21117856]
[1771014621999,1.00564822,2046.2,2045.4,0.96658856]
[1771014622395,1.00564822,2046.2,2045.5,1.21115856]
[1771014622903,1.00564822,2046.2,2045.8,0.96658856]
[1771014623502,1.00564822,2046.2,2045.7,1.21112856]
[1771014623700,1.00564822,2046.2,2045.7,0.24454]
[1771014624501,1.00564822,2046.2,2045.3,0.24459]
[1771014624706,1.00564822,2046.2,2045.4,0.96658856]
[1771014627209,1.00564822,2046.0,2045.3,0.24459]
[1771014628005,1.00564822,2046.0,2045.3,1.21117856]
[1771014629502,1.00564822,2046.0,2045.3,0.24459]
[1771014629807,1.00564822,2045.8,2045.0,0.96658856]
[1771014630905,1.00564822,2045.8,2045.2,1.02912778]
[1771014632106,1.0381706,2046.0,2045.4,1.02912778]
[1771014632809,1.0381706,2045.8,2045.3,0.24459]
[1771014633009,1.0381706,2045.8,2045.3,1.27371778]
[1771014633206,1.0381706,2045.8,2045.3,0.24459]
[1771014635013,1.0381706,2045.8,2045.3,1.27371778]
[1771014636408,1.0381706,2045.8,2045.0,1.02912778]
[1771014637509,1.0381706,2045.8,2045.2,1.01513605]
[1771014638718,1.0381706,2045.8,2045.4,1.01513605]
[1771014639809,1.0381706,2045.8,2045.3,1.25972605]
[1771014640216,0.96311106,2046.0,2045.3,1.25972605]
[1771014640714,15.187,2046.1,2045.1,1.01513605]
[1771014640715,0.96311106,2045.8,2045.1,1.01513605]
[1771014641712,0.96311106,2045.6,2044.9,0.24464]
[1771014642317,0.96311106,2045.6,2044.9,1.25977605]
[1771014643021,0.96311106,2045.6,2044.9,0.24464]